bitfinex/quotes_SOLUSD_20240829
["timestamp","ask_amount","ask_price","bid_price","bid_amount"]
[1724959378531,0.12549,140.71,140.67,7.1084]
[1724959378912,0.12549,140.71,140.68,7.1082]
[1724959379111,7.1058,140.73,140.66,17.7725]
[1724959379112,3.65145028,140.74,140.66,17.7725]
[1724959379311,0.12549,140.73,140.66,17.7725]
[1724959379615,7.1067,140.72,140.67,7.1087]
[1724959379818,0.12549,140.71,140.67,7.1087]
[1724959380231,0.12549,140.71,140.66,17.7725]
[1724959381408,6.6074,140.7,140.66,17.7725]
[1724959381611,7.1079,140.69,140.64,7.1102]
[1724959381915,7.1075,140.7,140.66,7.1093]
[1724959382238,0.12549,140.69,140.66,7.1093]
[1724959382443,0.12549,140.69,140.65,7.1097]
[1724959382757,3.51965506,140.75,140.66,32.778]
[1724959383035,3.6869664,140.93,140.91,7.0967]
[1724959383212,20.3885,141.05,140.95,7.0947]
[1724959383413,70.3885,141.05,140.95,7.0947]
[1724959383637,63.2987,141.05,140.95,7.0947]
[1724959384015,70.3887,141.05,140.95,7.0947]
[1724959384224,13.2987,141.05,140.95,7.0947]
[1724959384829,63.2987,141.05,140.95,7.0947]
[1724959385223,7.0909,141.03,140.95,7.0947]
[1724959386020,63.2987,141.05,140.95,7.0947]
[1724959386447,7.0908,141.03,140.95,7.0947]
[1724959387018,20.0,141.02,140.95,7.0947]
[1724959388630,27.0913,141.02,140.95,7.0947]
[1724959388818,7.0918,141.01,140.95,7.0947]
[1724959390536,7.0927,140.99,140.94,17.7369]
[1724959390735,7.0926,141.0,140.9,17.742]
[1724959391036,20.0,140.99,140.93,7.0952]
[1724959391537,20.0,140.99,140.94,7.0951]
[1724959391935,20.0,140.99,140.95,7.0947]
[1724959392123,20.0,141.04,140.93,24.8342]
[1724959392523,7.0923,141.0,140.93,24.8342]
[1724959392849,20.0,140.99,140.93,24.8342]
[1724959393343,27.0927,140.99,140.93,24.8342]
[1724959396047,7.0921,141.01,140.95,7.0947]
[1724959396245,17.7202,141.09,140.95,52.0947]
[1724959396727,17.7202,141.09,140.95,52.22019]
[1724959397459,7.0897,141.05,140.95,52.0947]
[1724959398451,7.0892,141.06,140.95,52.22019]
[1724959399150,62.1921,141.1,140.95,52.22019]
[1724959399355,7.0893,141.06,140.95,52.22019]
[1724959399722,20.0,141.05,140.95,52.22019]
[1724959400158,20.0,141.07,140.96,24.8297]
[1724959400324,7.0877,141.09,140.96,90.08068]
[1724959400531,7.0877,141.09,140.96,163.59043629]
[1724959401424,7.0881,141.08,140.96,163.59043629]
[1724959401747,7.0881,141.08,140.96,121.20369707]
[1724959401950,12.1921,141.1,141.01,17.728]
[1724959401951,19.2797,141.1,141.01,17.728]
[1724959402249,7.0877,141.09,141.04,7.09]
[1724959402849,7.0881,141.08,141.03,7.0906]
[1724959403426,7.0877,141.09,141.03,7.0906]
[1724959403749,7.0877,141.09,141.04,7.0899]
[1724959405229,7.0872,141.1,141.04,7.0897]
[1724959405447,7.9361099,141.11,141.03,17.7263]
[1724959405629,0.8495099,141.11,141.07,7.0885]
[1724959406643,0.8495099,141.11,141.08,7.088]
[1724959406844,0.8495099,141.11,141.09,7.0872]
[1724959407228,0.8495099,141.11,141.08,24.8075]
[1724959407428,0.8495099,141.11,141.08,17.7194]
[1724959407651,20.8495099,141.11,141.08,24.8075]
[1724959408040,0.8495099,141.11,141.09,7.0872]
[1724959408944,0.8495099,141.11,141.09,7.73978634]
[1724959409465,0.8495099,141.11,141.1,7.0871]
[1724959410256,0.8495099,141.11,141.09,8.10362871]
[1724959411557,0.8495099,141.11,141.09,7.0875]
[1724959411858,0.8495099,141.11,141.09,8.50479367]
[1724959412259,0.8495099,141.11,141.09,1.41729367]
[1724959412448,0.8495099,141.11,141.08,24.8074]
[1724959417063,0.8495099,141.11,141.08,17.7194]
[1724959418337,0.8495099,141.11,141.1,7.0871]
[1724959422145,0.8495099,141.11,141.09,7.0875]
[1724959422368,1.000001,141.14,141.13,24.7997]
[1724959422544,7.0791,141.26,141.13,78.9703839]
[1724959422869,10.61255357,141.31,141.24,7.0801]
[1724959423174,1.000001,141.3,141.24,7.0801]
[1724959423546,8.077201,141.3,141.24,7.0801]
[1724959423773,7.0788,141.27,141.22,17.7018]
[1724959424155,1.000001,141.26,141.22,17.7018]
[1724959424457,1.000001,141.26,141.19,17.7064]
[1724959424655,8.079501,141.26,141.19,24.789]
[1724959424958,8.080201,141.24,141.19,17.7064]
[1724959425267,7.0806,141.23,141.18,7.0829]
[1724959425644,8.080201,141.24,141.18,7.0829]
[1724959426259,1.000001,141.28,141.18,17.7068]
[1724959426472,7.078,141.29,141.23,7.0801]
[1724959426668,1.000001,141.29,141.24,8.49584322]
[1724959427274,7.0796,141.26,141.19,24.7886]
[1724959427572,7.0786,141.27,141.21,7.0816]
[1724959427872,1.000001,141.26,141.21,7.0816]
[1724959428244,1.000001,141.26,141.22,7.0811]
[1724959428859,1.000001,141.26,141.19,17.7064]
[1724959429170,7.9292099,141.25,141.19,17.7064]
[1724959429342,0.8495099,141.25,141.2,7.0819]
[1724959429542,0.8495099,141.25,141.21,7.0813]
[1724959430180,0.8495099,141.25,141.22,7.081]
[1724959430469,0.8495099,141.25,141.19,17.7064]
[1724959430641,0.8495099,141.25,141.21,7.0812]
[1724959430843,0.8495099,141.25,141.22,1.41570362]
[1724959431075,0.8495099,141.25,141.21,7.0812]
[1724959431251,0.8495099,141.25,141.19,17.7064]
[1724959431446,7.9295099,141.25,141.19,24.789]
[1724959431668,1.000001,141.24,141.19,24.789]
[1724959431870,7.0801,141.24,141.19,17.7064]
[1724959432074,0.8495099,141.25,141.13,35.4259]
[1724959432075,1.000001,141.23,141.15,17.7108]
[1724959432247,7.0807,141.23,141.17,7.0832]
[1724959432847,1.000001,141.22,141.17,7.0832]
[1724959433173,8.081101,141.22,141.16,7.0841]
[1724959433544,7.0816,141.21,141.16,7.0841]
[1724959434444,1.000001,141.24,141.18,7.083]
[1724959434445,7.0806,141.23,141.18,7.083]
[1724959434867,7.0812,141.22,141.17,24.7917]
[1724959435059,7.0817,141.21,141.17,17.7081]
[1724959435451,1.000001,141.24,141.14,7.0846]
[1724959435662,66.000001,141.24,141.15,7.0844]
[1724959436569,17.7025,141.23,141.13,17.7132]
[1724959436768,21.000001,141.22,141.13,17.7132]
[1724959436949,7.0832,141.18,141.13,24.7984]
[1724959437145,7.0827,141.19,141.14,7.085]
[1724959437961,7.0837,141.17,141.13,24.7987]
[1724959438282,7.083,141.19,141.14,7.085]
[1724959438577,7.0832,141.18,141.14,7.085]
[1724959438775,7.0832,141.18,141.12,7.086]
[1724959438776,7.0842,141.16,141.12,7.086]
[1724959438989,1.000001,141.18,141.11,7.0866]
[1724959439292,17.7047,141.21,141.11,7.0866]
[1724959439293,7.0843,141.16,141.11,7.0866]
[1724959439652,1.000001,141.17,141.06,78.7277]
[1724959439653,1.000001,141.15,141.07,17.7211]
[1724959440070,44.1062,141.17,141.07,17.7211]
[1724959440271,1.000001,141.16,141.07,17.7211]
[1724959441372,7.0852,141.14,141.09,7.0876]
[1724959441577,7.0852,141.14,140.99,24.94487457]
[1724959441578,50.0,140.97,140.75,32.34702922]
[1724959441877,50.0,140.97,140.64,5.0]
[1724959441878,50.0,140.86,140.79,7.10299583]
[1724959442384,1.000001,140.85,140.79,7.10299583]
[1724959442751,7.1004,140.84,140.79,7.10299583]
[1724959443158,27.1011,140.83,140.79,7.10299583]
[1724959443466,7.1011,140.83,140.79,7.10299583]
[1724959443663,7.1017,140.81,140.79,7.10299583]
[1724959443860,21.000001,140.8,140.79,7.10299583]
[1724959444357,7.1017,140.81,140.79,7.10299583]
[1724959444558,7.0999,140.85,140.79,7.10299583]
[1724959444878,1.000001,140.9,140.79,7.10299583]
[1724959445077,1.000001,140.88,140.79,7.10299583]
[1724959445880,7.102,140.81,140.79,7.10299583]
[1724959446085,1.000001,140.8,140.79,7.10299583]
[1724959446383,21.000001,140.8,140.79,7.10299583]
[1724959446872,5.0,140.88,140.79,7.10299583]
[1724959446873,7.101,140.83,140.79,7.10299583]
[1724959447193,12.5763,140.84,140.7,5.0]
[1724959447485,1.000001,140.82,140.61,5.8495099]
[1724959447856,7.1069,140.71,140.61,0.8495099]
[1724959448060,7.1058,140.73,140.61,0.8495099]
[1724959448258,1.000001,140.79,140.61,51.84908583]
[1724959448455,7.1065,140.72,140.61,0.8495099]
[1724959448888,66.000001,140.79,140.61,0.8495099]
[1724959448889,7.1074,140.7,140.62,7.111]
[1724959449390,7.1074,140.7,140.61,0.8495099]
[1724959449391,7.108,140.69,140.61,0.8495099]
[1724959449565,7.1088,140.67,140.61,0.8495099]
[1724959450473,1.000001,140.75,140.61,0.8495099]
[1724959450474,7.108,140.69,140.61,7.9612099]
[1724959450993,7.1084,140.68,140.61,7.9612099]
[1724959452156,17.7665,140.72,140.61,0.8495099]
[1724959452365,65.0,140.71,140.61,0.8495099]
[1724959452568,1.000001,140.7,140.61,0.8495099]
[1724959452870,7.1092,140.67,140.61,0.8495099]
[1724959453278,1.000001,140.7,140.61,0.8495099]
[1724959453279,1.000001,140.72,140.64,7.1099]
[1724959453527,21.000001,140.76,140.64,7.1099]
[1724959454275,7.107,140.71,140.64,7.1099]
[1724959454585,1.000001,140.76,140.65,50.99957593]
[1724959454759,1.000001,140.79,140.66,45.12549]
[1724959455089,7.1053,140.74,140.66,52.1088]
[1724959455383,7.1058,140.73,140.66,52.1088]
[1724959455585,1.000001,140.79,140.67,17.771]
[1724959455888,1.000001,140.79,140.7,7.1071]
[1724959456085,1.000001,140.8,140.7,7.1071]
[1724959456766,1.000001,140.79,140.68,7.1079]
[1724959457991,7.1048,140.75,140.69,7.1077]
[1724959458181,1.000001,140.79,140.7,52.1071]
[1724959458382,21.000001,140.8,140.7,52.1071]
[1724959458607,1.000001,140.79,140.7,52.1071]
[1724959459095,7.1036,140.78,140.71,7.1067]
[1724959459319,7.1038,140.77,140.71,7.1067]
[1724959462876,1.000001,140.76,140.7,17.7678]
[1724959463205,7.1053,140.74,140.66,17.7721]
[1724959463698,7.1059,140.73,140.68,7.1083]
[1724959463906,17.7586,140.78,140.66,17.7721]
[1724959464106,7.1068,140.71,140.66,17.7721]
[1724959464278,1.000001,140.76,140.66,17.7721]
[1724959464487,21.000001,140.76,140.66,17.7721]
[1724959465388,7.1068,140.71,140.66,17.7721]
[1724959465904,7.1068,140.71,140.66,24.8814]
[1724959466689,21.000001,140.76,140.66,17.7721]
[1724959466893,21.000001,140.75,140.66,17.7721]
[1724959467088,1.000001,140.75,140.66,17.7721]
[1724959467302,1.000001,140.76,140.66,17.7721]
[1724959467788,1.000001,140.76,140.67,45.0]
[1724959468377,7.1053,140.74,140.68,7.1082]
[1724959469014,7.1058,140.73,140.68,7.1082]
[1724959469398,8.106401,140.72,140.66,17.7721]
[1724959469690,7.1073,140.7,140.65,7.1096]
[1724959470114,7.1068,140.71,140.65,7.1096]
[1724959470405,7.1074,140.7,140.65,7.1096]
[1724959470621,17.7646,140.73,140.63,24.8872]
[1724959470907,21.000001,140.72,140.63,24.8872]
[1724959471104,20.0,140.72,140.66,7.1092]
[1724959471710,20.0,140.75,140.66,7.1092]
[1724959471906,18.764101,140.74,140.63,17.7768]
[1724959472110,65.0,140.73,140.63,17.7768]
[1724959472418,7.1078,140.7,140.65,7.1093]
[1724959473417,7.1068,140.71,140.65,7.1093]
[1724959473827,7.1063,140.72,140.67,7.1088]
[1724959474028,1.000001,140.76,140.69,7.1076]
[1724959474315,7.104,140.77,140.72,7.1062]
[1724959474914,1.000001,140.76,140.72,7.106]
[1724959475119,1.000001,140.79,140.71,7.1067]
[1724959475495,21.000001,140.79,140.71,7.1067]
[1724959476052,21.000001,140.79,140.7,62.768]
[1724959476326,21.000001,140.79,140.7,17.768]
[1724959478019,7.1043,140.76,140.7,17.768]
[1724959478195,7.1043,140.76,140.71,45.0]
[1724959479521,7.1043,140.76,140.72,7.1063]
[1724959484320,7.1038,140.77,140.72,7.1063]
[1724959485416,7.1043,140.76,140.72,7.1063]
[1724959486512,20.0,140.79,140.72,17.7653]
[1724959486818,7.1032,140.79,140.74,7.1048]
[1724959488899,21.000001,140.78,140.72,17.7653]
[1724959489097,7.1039,140.77,140.72,24.8715]
[1724959489326,21.000001,140.78,140.73,7.1055]
[1724959489327,28.103601,140.78,140.73,7.1055]
[1724959489616,27.1036,140.78,140.73,7.1055]
[1724959489806,7.1037,140.77,140.72,24.8714]
[1724959490008,7.1037,140.77,140.73,7.1057]
[1724959491824,7.1044,140.76,140.72,24.8714]
[1724959492424,7.105,140.75,140.7,7.1069]
[1724959492618,7.105,140.75,140.71,7.1067]
[1724959492926,1.000001,140.77,140.71,17.7662]
[1724959493229,1.000001,140.77,140.72,7.1062]
[1724959493395,1.000001,140.8,140.72,7.1062]
[1724959493594,1.000001,140.79,140.72,7.1062]
[1724959494022,7.1043,140.76,140.71,24.8728]
[1724959494835,7.1043,140.76,140.72,7.1062]
[1724959496020,7.1043,140.76,140.71,24.8728]
[1724959497314,7.1053,140.74,140.7,7.1071]
[1724959497513,7.1053,140.74,140.68,17.7699]
[1724959497724,7.1053,140.74,140.69,7.1074]
[1724959497929,7.1058,140.73,140.69,7.1074]
[1724959498237,7.1058,140.73,140.69,7.1078]
[1724959498946,8.106401,140.72,140.68,17.7699]
[1724959499123,7.1062,140.73,140.67,7.1087]
[1724959499441,8.106301,140.72,140.67,7.1087]
[1724959501060,7.1068,140.71,140.67,7.1087]
[1724959501339,7.1068,140.71,140.65,17.7738]
[1724959501545,8.107301,140.7,140.65,24.8835]
[1724959501754,7.1073,140.7,140.65,24.8835]
[1724959505571,12.4034,140.75,140.64,35.5504]
[1724959505848,1.000001,140.76,140.71,17.7665]
[1724959506045,31.80522548,140.79,140.72,7.1063]
[1724959506046,7.1037,140.77,140.72,7.1063]
[1724959506242,1.000001,140.76,140.72,7.1063]
[1724959506461,35.38748585,140.79,140.71,17.7665]
[1724959506462,19.957601,140.79,140.71,17.7665]
[1724959506768,19.957601,140.79,140.74,7.1052]
[1724959507540,7.1028,140.79,140.74,7.1052]
[1724959507856,1.000001,140.8,140.77,7.1037]
[1724959508032,1.000001,140.82,140.77,7.1037]
[1724959508434,7.1018,140.81,140.76,7.1041]
[1724959508741,1.000001,140.8,140.76,7.1041]
[1724959509130,1.000001,140.8,140.75,17.7607]
[1724959509431,1.000001,140.79,140.75,17.7607]
[1724959509631,21.000001,140.82,140.75,17.7607]
[1724959510354,7.1028,140.79,140.75,17.7607]
[1724959510556,1.000001,140.78,140.75,17.7607]
[1724959512440,1.000001,140.78,140.72,17.7653]
[1724959512756,7.1048,140.75,140.7,7.1072]
[1724959513256,1.000001,140.79,140.71,7.1066]
[1724959513601,66.000001,140.79,140.71,7.1066]
[1724959513864,7.1046,140.76,140.71,7.1066]
[1724959514049,1.000001,140.75,140.71,7.1066]
[1724959516165,1.000001,140.75,140.68,7.1081]
[1724959516456,7.1059,140.73,140.68,7.1081]
[1724959516765,1.000001,140.72,140.68,7.1081]
[1724959517058,7.1059,140.73,140.68,7.1081]
[1724959517460,1.000001,140.76,140.69,17.7689]
[1724959517770,7.1054,140.74,140.69,17.7689]
[1724959517935,7.1049,140.75,140.7,7.1072]
[1724959518142,1.000001,140.74,140.7,7.1072]
[1724959518341,8.104901,140.75,140.7,7.1072]
[1724959518856,1.000001,140.75,140.71,7.1066]
[1724959519060,21.000001,140.77,140.71,17.7658]
[1724959519265,4.47367306,140.8,140.71,17.7658]
[1724959519452,68.25003926,140.81,140.71,17.7658]
[1724959519453,1.000001,140.79,140.71,17.7658]
[1724959520042,8.102801,140.79,140.74,7.1051]
[1724959520243,1.000001,140.79,140.74,7.1051]
[1724959520557,1.000001,140.78,140.71,17.7658]
[1724959520759,7.1048,140.75,140.71,17.7658]
[1724959521099,8.104201,140.77,140.71,17.7658]
[1724959521363,20.0,140.8,140.71,24.8721]
[1724959521364,8.104301,140.76,140.71,24.8721]
[1724959521565,7.1043,140.76,140.71,24.8721]
[1724959521864,1.000001,140.75,140.71,24.8721]
[1724959522046,7.1043,140.76,140.71,24.8721]
[1724959522560,20.0,140.8,140.71,17.7658]
[1724959522561,8.104801,140.75,140.71,17.7658]
[1724959522762,8.104801,140.75,140.69,7.1076]
[1724959522763,1.000001,140.75,140.69,7.1076]
[1724959522967,1.000001,140.74,140.69,7.1076]
[1724959523257,1.000001,140.77,140.69,7.1076]
[1724959523569,7.1054,140.74,140.69,7.1076]
[1724959523745,1.000001,140.73,140.69,7.1076]
[1724959523953,7.1047,140.75,140.7,7.107]
[1724959524349,1.000001,140.74,140.7,7.107]
[1724959525059,1.000001,140.73,140.68,17.7701]
[1724959525363,7.1059,140.73,140.68,24.8782]
[1724959525861,7.1064,140.72,140.68,24.8782]
[1724959526867,7.1064,140.72,140.68,17.7701]
[1724959527669,7.1079,140.69,140.65,17.7744]
[1724959527967,1.000001,140.71,140.65,24.8838]
[1724959527968,7.1073,140.7,140.65,24.8838]
[1724959528144,1.000001,140.69,140.65,24.8838]
[1724959528972,1.000001,140.69,140.61,0.8495099]
[1724959529848,7.1099,140.65,140.61,0.8495099]
[1724959530050,7.1094,140.66,140.61,7.9613099]
[1724959530245,7.1094,140.66,140.62,7.1112]
[1724959530468,8.108901,140.67,140.62,7.1112]
[1724959531975,8.108801,140.67,140.63,17.7766]
[1724959532351,1.000001,140.67,140.63,24.8874]
[1724959532773,8.108801,140.67,140.63,17.7766]
[1724959532959,1.000001,140.66,140.63,17.7766]
[1724959533679,8.109801,140.66,140.61,7.9610099]
[1724959533987,8.109801,140.66,140.62,7.1112]
[1724959534202,1.000001,140.66,140.62,7.1112]
[1724959534483,7.1089,140.67,140.63,7.1108]
[1724959534704,1.000001,140.69,140.61,0.8495099]
[1724959534854,8.106901,140.71,140.66,7.1092]
[1724959535281,12.7226,140.72,140.61,45.8495099]
[1724959535455,1.000001,140.73,140.69,7.1077]
[1724959535860,8.105901,140.73,140.67,24.8796]
[1724959536189,8.105901,140.73,140.68,7.1081]
[1724959536366,1.000001,140.73,140.69,7.1077]
[1724959537177,1.000001,140.73,140.7,7.1073]
[1724959537762,8.105901,140.73,140.67,17.7713]
[1724959537961,7.1063,140.72,140.67,24.8797]
[1724959538161,1.000001,140.71,140.67,24.8797]
[1724959538591,1.000001,140.71,140.67,17.7713]
[1724959538592,8.107001,140.71,140.67,17.7713]
[1724959538883,8.107601,140.7,140.64,24.8851]
[1724959539064,7.1068,140.71,140.64,17.7753]
[1724959539262,1.000001,140.7,140.66,7.1088]
[1724959541780,1.000001,140.7,140.67,7.1087]
[1724959541994,1.000001,140.7,140.66,7.1092]
[1724959542901,8.107401,140.7,140.66,7.1092]
[1724959543089,1.000001,140.7,140.64,17.7753]
[1724959543385,8.107401,140.7,140.66,7.1092]
[1724959543873,1.000001,140.7,140.66,7.1092]
[1724959544277,1.000001,140.7,140.67,7.1087]
[1724959544583,1.000001,140.7,140.66,7.1092]
[1724959545493,8.107501,140.7,140.66,7.1092]
[1724959545887,7.1075,140.7,140.66,7.1092]
[1724959546071,8.107801,140.69,140.65,7.1098]
[1724959546885,8.107801,140.69,140.64,24.8854]
[1724959547186,7.1092,140.67,140.61,18.6285099]
[1724959547394,1.000001,140.66,140.63,7.1108]
[1724959547695,8.109401,140.66,140.62,7.1112]
[1724959548193,7.1102,140.65,140.61,18.6285099]
[1724959548389,1.000001,140.64,140.61,0.8495099]
[1724959548697,11.8089,140.68,140.61,0.8495099]
[1724959548698,7.1109,140.63,140.61,0.8495099]
[1724959550181,8.111301,140.62,140.61,0.8495099]
[1724959553302,73.111301,140.62,140.61,0.8495099]
[1724959554778,85.026601,140.62,140.61,0.8495099]
[1724959557481,40.026601,140.62,140.61,0.8495099]
[1724959558102,1.000001,140.62,140.61,0.8495099]
[1724959558402,21.000001,140.64,140.61,0.8495099]
[1724959559288,7.1109,140.63,140.61,0.8495099]
[1724959559603,1.000001,140.64,140.61,0.8495099]
[1724959560313,7.1113,140.62,140.61,0.8495099]
[1724959560597,8.110301,140.64,140.61,0.8495099]
[1724959560772,1.000001,140.66,140.61,0.8495099]
[1724959560974,1.000001,140.67,140.65,7.1098]
[1724959561170,1.000001,140.69,140.65,7.1098]
[1724959561508,1.000001,140.69,140.66,7.1092]
[1724959561871,1.000001,140.7,140.66,7.1092]
[1724959562407,1.000001,140.7,140.67,7.1088]
[1724959562982,1.000001,140.7,140.65,17.7737]
[1724959563190,1.000001,140.71,140.68,7.1082]
[1724959563635,1.000001,140.71,140.65,17.7737]
[1724959563636,1.000001,140.71,140.67,7.1088]
[1724959564411,8.106801,140.71,140.67,7.1088]
[1724959564583,1.000001,140.7,140.67,7.1088]
[1724959566382,7.1068,140.71,140.67,7.1088]
[1724959566713,7.1064,140.72,140.67,7.1088]
[1724959569392,15.33751427,140.75,140.66,7.1092]
[1724959569590,66.000001,140.74,140.66,7.1092]
[1724959570300,7.1073,140.7,140.66,7.1093]
[1724959570529,1.000001,140.69,140.61,34.89773673]
[1724959570729,1.000001,140.73,140.62,20.0]
[1724959571108,7.1077,140.7,140.65,7.1096]
[1724959571307,1.000001,140.69,140.65,7.1096]
[1724959571622,1.000001,140.73,140.65,7.1097]
[1724959571809,1.000001,140.73,140.64,17.7751]
[1724959572005,7.1078,140.69,140.64,24.885]
[1724959572225,7.1072,140.71,140.64,17.7751]
[1724959572426,1.000001,140.7,140.61,70.45483673]
[1724959572629,8.105801,140.73,140.63,34.04822683]
[1724959572805,7.1079,140.69,140.65,17.7742]
[1724959573003,1.000001,140.68,140.65,17.7742]
[1724959573203,1.000001,140.68,140.61,0.8495099]
[1724959573608,7.1089,140.67,140.62,7.111]
[1724959573826,7.1083,140.68,140.61,18.6287099]
[1724959574100,1.000001,140.67,140.64,7.1102]
[1724959575712,8.108801,140.67,140.63,17.7767]
[1724959575917,1.000001,140.66,140.63,24.8873]
[1724959576125,1.000001,140.67,140.63,24.8873]
[1724959576327,7.1077,140.7,140.65,24.8838]
[1724959576519,1.000001,140.69,140.65,24.8838]
[1724959577119,7.1083,140.68,140.63,7.1104]
[1724959577431,1.000001,140.67,140.64,7.1102]
[1724959577935,7.1078,140.7,140.65,7.1098]
[1724959578125,8.107901,140.69,140.64,24.8853]
[1724959578318,1.000001,140.69,140.65,7.1094]
[1724959578635,7.1074,140.7,140.65,7.1094]
[1724959578834,1.000001,140.69,140.65,7.1094]
[1724959579626,8.107901,140.69,140.65,7.1094]
[1724959579939,1.000001,140.68,140.65,7.1094]
[1724959580313,8.108301,140.68,140.64,24.8856]
[1724959581011,1.000001,140.68,140.61,18.6283099]
[1724959581217,7.1099,140.65,140.61,18.6283099]
[1724959581509,7.1094,140.66,140.62,7.1112]
[1724959581728,1.000001,140.65,140.63,7.1105]
[1724959581934,7.1093,140.66,140.62,7.1112]
[1724959582139,17.7675,140.71,140.62,7.1112]
[1724959582343,65.0,140.7,140.62,7.1112]
[1724959583134,7.1089,140.67,140.62,7.1112]
[1724959583435,1.000001,140.66,140.62,7.1112]
[1724959583647,7.1093,140.66,140.61,25.7400099]
[1724959583817,8.109901,140.65,140.61,25.7400099]
[1724959584018,1.000001,140.64,140.61,25.7400099]
[1724959584759,7.1094,140.66,140.61,25.7400099]
[1724959585128,7.1112,140.63,140.61,0.8495099]
[1724959585635,7.1103,140.64,140.61,0.8495099]
[1724959586052,1.000001,140.63,140.61,0.8495099]
[1724959587054,8.111001,140.63,140.61,0.8495099]
[1724959588336,7.1113,140.62,140.61,0.8495099]
[1724959588542,8.111301,140.62,140.61,0.8495099]
[1724959588726,72.1113,140.62,140.61,0.8495099]
[1724959590159,73.111301,140.62,140.61,0.8495099]
[1724959591739,84.661301,140.62,140.61,0.8495099]
[1724959596642,84.661301,140.62,140.55,7.1147]
[1724959596643,7.1125,140.6,140.55,7.9548422]
[1724959596967,1.000001,140.59,140.55,1.1813608]
[1724959597869,7.1137,140.58,140.55,1.1813608]
[1724959598036,1.000001,140.57,140.55,1.1813608]
[1724959598453,7.1143,140.56,140.55,1.1813608]
[1724959598662,72.1143,140.56,140.55,1.1813608]
[1724959598956,115.0,140.56,140.47,31.2537]
[1724959599161,7.1173,140.51,140.46,7.1193]
[1724959599341,66.000001,140.55,140.45,30.0972]
[1724959599342,8.117501,140.5,140.45,30.0972]
[1724959599542,1.000001,140.49,140.45,30.0972]
[1724959599744,1.000001,140.49,140.45,37.217]
[1724959600452,1.000001,140.5,140.45,37.217]
[1724959600742,20.0,140.56,140.51,7.1165]
[1724959600950,1.000001,140.55,140.51,7.1165]
[1724959601331,8.114901,140.55,140.49,17.794]
[1724959601768,8.114901,140.55,140.49,24.9114]
[1724959602145,7.1154,140.54,140.49,24.9114]
[1724959602462,1.000001,140.53,140.49,24.9114]
[1724959603251,1.000001,140.53,140.49,17.794]
[1724959603450,8.116301,140.53,140.48,7.1183]
[1724959603646,1.000001,140.52,140.48,7.1183]
[1724959603849,1.000001,140.52,140.47,7.1188]
[1724959604067,1.000001,140.52,140.46,24.9177]
[1724959604239,21.000001,140.55,140.46,24.9177]
[1724959604441,46.000001,140.54,140.46,24.9177]
[1724959604653,20.0,140.53,140.46,24.9177]
[1724959604860,46.000001,140.52,140.46,24.9177]
[1724959605059,1.000001,140.51,140.46,24.9177]
[1724959605259,8.116901,140.51,140.46,24.9177]
[1724959606777,1.000001,140.51,140.47,7.1189]
[1724959607143,1.000001,140.51,140.48,7.1183]
[1724959607357,1.000001,140.52,140.48,7.1183]
[1724959607869,1.000001,140.52,140.49,7.1179]
[1724959608871,7.1154,140.54,140.49,7.1179]
[1724959609051,1.000001,140.53,140.5,7.1173]
[1724959609645,1.000001,140.54,140.51,7.1168]
[1724959609856,1.000001,140.54,140.52,7.1163]
[1724959610255,1.000001,140.54,140.51,7.1167]
[1724959610574,1.000001,140.55,140.51,7.1167]
[1724959613068,1.000001,140.55,140.52,7.1162]
[1724959613375,1.000001,140.56,140.52,17.7902]
[1724959614070,1.000001,140.57,140.52,17.7902]